bitfinex/quotes_ETHUSD_20240730
["timestamp","ask_amount","ask_price","bid_price","bid_amount"]
[1722362767780,3.03876,3290.9,3289.9,3.03952]
[1722362768471,3.03876,3290.9,3290.0,3.0395]
[1722362768666,2.3683,3291.4,3290.0,3.03945]
[1722362768904,3.03834,3291.3,3290.3,3.03916]
[1722362769209,3.03799,3291.7,3290.5,3.03903]
[1722362769392,3.0379,3291.8,3290.1,2.348]
[1722362769592,0.94353695,3292.8,3290.1,2.348]
[1722362769593,3.03795,3291.7,3290.2,7.9]
[1722362769780,3.03795,3291.7,3290.7,3.03885]
[1722362770164,3.03868,3290.9,3290.8,0.03286646]
[1722362770364,5.35597,3291.5,3290.1,3.03935]
[1722362770718,3.03842,3291.2,3290.2,35.0]
[1722362771023,7.39,3291.8,3290.2,0.03299924]
[1722362771024,2.3576,3290.7,3290.2,0.03299924]
[1722362771180,3.03873,3290.9,3290.2,0.03299924]
[1722362771507,3.03873,3290.9,3289.6,3.03979]
[1722362771508,3.03892,3290.7,3290.3,0.03299432]
[1722362771716,3.03871,3290.9,3289.8,35.0]
[1722362771918,3.03871,3290.9,3290.4,0.03293081]
[1722362772081,3.03844,3291.2,3290.0,3.03951]
[1722362772285,5.39583,3291.4,3290.5,0.03286729]
[1722362772515,5.39583,3291.4,3290.1,0.06078073]
[1722362772516,3.03836,3291.3,3290.3,3.03923]
[1722362772716,3.03816,3291.5,3290.6,0.03283654]
[1722362772868,3.03795,3291.7,3290.7,3.03886]
[1722362773186,3.03795,3291.7,3290.8,0.03270953]
[1722362773519,3.03827,3291.4,3290.1,3.03937]
[1722362773701,3.03842,3291.2,3290.9,0.03258052]
[1722362773902,5.42704,3292.0,3290.7,3.03886]
[1722362774070,3.03791,3291.8,3290.8,0.06076729]
[1722362774270,3.03791,3291.8,3290.9,0.03258052]
[1722362774487,3.03791,3291.8,3291.0,35.0]
[1722362774689,3.03774,3292.0,3291.1,0.03245353]
[1722362774928,0.94335935,3292.8,3291.1,0.09321812]
[1722362774929,2.3893,3292.7,3291.1,0.09321812]
[1722362775243,3.03783,3291.9,3291.1,0.03245353]
[1722362775547,3.03782,3291.9,3291.2,35.0]
[1722362775680,3.03782,3291.9,3291.2,35.03239005]
[1722362776001,3.03786,3291.8,3291.2,35.03239005]
[1722362776168,3.03795,3291.7,3291.2,35.03239005]
[1722362776575,3.03806,3291.6,3291.2,35.03239005]
[1722362776802,3.03831,3291.3,3291.2,0.03239005]
[1722362777003,3.0387,3290.9,3289.7,2.3193]
[1722362777319,3.03815,3291.5,3290.1,0.0329766]
[1722362777320,3.03911,3290.5,3290.1,0.0329766]
[1722362777535,3.0389,3290.7,3290.1,0.0329766]
[1722362777816,6.58823,3291.4,3290.1,0.0329766]
[1722362777817,3.03917,3290.4,3290.1,0.0329766]
[1722362778018,3.03924,3290.3,3290.1,0.0329766]
[1722362778174,3.03907,3290.5,3290.1,0.0329766]
[1722362778521,3.03928,3290.3,3290.1,0.0329766]
[1722362778723,3.0391,3290.5,3290.1,0.0329766]
[1722362778942,3.03919,3290.4,3290.1,0.0329766]
[1722362779083,3.03924,3290.3,3290.1,0.0329766]
[1722362779632,3.03897,3290.6,3290.1,0.0329766]
[1722362780024,3.03905,3290.5,3290.1,0.0329766]
[1722362780189,3.0387,3290.9,3290.1,0.0329766]
[1722362780190,3.03891,3290.7,3290.1,0.0329766]
[1722362780578,3.03873,3290.9,3290.1,0.0329766]
[1722362780813,3.03855,3291.1,3290.1,0.83205785]
[1722362781020,3.0387,3290.9,3290.1,0.77127426]
[1722362781324,3.0387,3290.9,3290.2,35.0]
[1722362781676,3.0387,3290.9,3290.3,0.0327788]
[1722362782103,3.0387,3290.9,3290.1,0.73829766]
[1722362782305,3.0387,3290.9,3290.2,35.03296298]
[1722362782675,3.03903,3290.6,3290.2,0.03296298]
[1722362782915,3.03903,3290.6,3289.6,3.03981]
[1722362783134,3.03879,3290.8,3290.3,0.03289946]
[1722362783279,3.03869,3290.9,3289.9,38.03959]
[1722362783482,3.03864,3291.0,3290.4,0.03283594]
[1722362783730,3.03864,3291.0,3290.0,3.0395]
[1722362783880,3.03887,3290.7,3290.5,0.03277243]
[1722362784079,3.039,3290.6,3289.9,35.0]
[1722362784283,3.039,3290.6,3290.0,0.03309004]
[1722362784594,6.03823,3291.4,3290.0,3.08210292]
[1722362784804,3.0388,3290.8,3290.0,3.08210292]
[1722362785011,3.03884,3290.8,3290.0,3.08210292]
[1722362785532,3.03864,3291.0,3290.0,3.08210292]
[1722362786038,1.05255923,3290.9,3290.0,3.08210292]
[1722362786187,1.05254823,3290.8,3290.1,3.04901288]
[1722362786386,6.03824,3291.4,3290.1,3.04901288]
[1722362786387,1.05254823,3290.7,3290.1,3.04901288]
[1722362786631,3.03845,3291.2,3290.2,0.03296298]
[1722362786632,3.03863,3291.0,3290.2,0.03296298]
[1722362786833,1.05253198,3290.9,3290.2,0.09374361]
[1722362787043,7.39,3291.5,3290.5,3.03899]
[1722362787336,7.39,3291.5,3290.3,0.31427565]
[1722362787337,1.05235477,3291.4,3290.6,0.03271064]
[1722362787540,7.39,3291.5,3290.6,0.03271064]
[1722362787541,1.05235477,3291.3,3290.7,35.0]
[1722362787740,6.07583,3291.8,3290.7,41.08778288]
[1722362788039,1.05233426,3291.7,3290.8,6.10995709]
[1722362788190,7.39,3292.0,3290.9,0.06076489]
[1722362788394,1.05224851,3291.9,3291.2,3.03838]
[1722362788733,1.05224851,3291.9,3290.9,0.06076489]
[1722362788734,3.037,3292.8,3291.5,3.03808]
[1722362788886,3.03725,3292.5,3291.6,0.36456013]
[1722362789087,3.03725,3292.5,3291.7,0.03189851]
[1722362789330,1.05207233,3292.4,3291.7,0.03189851]
[1722362789636,3.03725,3292.5,3291.8,35.0]
[1722362789792,3.03705,3292.7,3291.8,38.03784]
[1722362789997,1.05196656,3292.6,3291.9,3.14153126]
[1722362790239,1.05196656,3292.5,3291.9,3.14153126]
[1722362790535,3.03676,3293.0,3291.9,0.09251838]
[1722362790746,1.05188995,3292.9,3292.0,35.0]
[1722362791047,7.39,3293.1,3292.0,35.0]
[1722362791048,3.03707,3292.7,3292.0,35.0]
[1722362791341,3.0373,3292.4,3292.1,0.03146722]
[1722362791498,3.03744,3292.3,3292.1,0.03146722]
[1722362791694,3.03723,3292.5,3292.1,0.03146722]
[1722362791926,3.03687,3292.9,3292.1,0.09221915]
[1722362792107,1.05197148,3292.8,3292.1,3.14122413]
[1722362792309,3.03689,3292.9,3292.1,3.14122413]
[1722362792707,3.03674,3293.0,3292.1,3.14122413]
[1722362792996,3.03651,3293.3,3292.1,6.17871413]
[1722362793206,7.08842566,3293.2,3292.1,6.17871413]
[1722362793410,3.03666,3293.1,3292.2,3.04901288]
[1722362793640,3.03679,3293.0,3292.2,3.04901288]
[1722362793940,3.0,3293.2,3292.3,0.09395417]
[1722362793941,6.03662,3293.2,3292.3,0.09395417]
[1722362794136,6.03662,3293.2,3292.3,1.32065016]
[1722362794349,3.03665,3293.1,3292.3,1.25990939]
[1722362794691,4.0886463,3293.0,3292.3,0.0332134]
[1722362794910,3.03729,3292.4,3292.3,0.0332134]
[1722362795121,3.03754,3292.2,3291.2,7.35]
[1722362795294,3.03713,3292.6,3291.5,2.98804]
[1722362795508,3.037,3292.8,3291.7,6.07582]
[1722362795790,7.39,3293.3,3291.8,2.44334385]
[1722362796019,3.03672,3293.1,3292.1,3.03752]
[1722362796203,3.03657,3293.2,3292.2,3.09820909]
[1722362796420,3.03665,3293.1,3292.3,35.06073903]
[1722362796644,3.03665,3293.1,3292.3,35.0]
[1722362796840,3.03665,3293.1,3292.4,0.04054688]
[1722362797038,3.03697,3292.8,3292.4,0.04054688]
[1722362797394,3.0366,3293.2,3292.1,0.35816258]
[1722362797592,3.03711,3292.6,3292.5,0.04046037]
[1722362797838,3.03703,3292.7,3291.9,7.35]
[1722362798040,2.20699272,3293.4,3291.9,7.35]
[1722362798041,6.07422,3292.6,3292.5,0.03708867]
[1722362798208,3.03725,3292.5,3291.9,7.35]
[1722362798442,5.52397,3292.9,3291.9,7.35]
[1722362798629,3.03739,3292.3,3292.0,0.0374852]
[1722362798797,3.03707,3292.7,3292.0,0.0374852]
[1722362799911,3.0,3293.1,3292.0,0.0374852]
[1722362800139,3.03702,3292.7,3292.0,0.0374852]
[1722362800799,3.03725,3292.5,3292.0,0.0374852]
[1722362800994,3.03699,3292.8,3292.0,0.77623372]
[1722362801246,3.0367,3293.1,3292.0,0.77623372]
[1722362801415,1.05195837,3293.0,3292.0,3.81384372]
[1722362801599,3.0367,3293.1,3292.0,3.81384372]
[1722362801792,3.0,3293.4,3292.1,36.11638437]
[1722362801793,3.03693,3292.8,3292.1,36.11638437]
[1722362802041,3.03689,3292.9,3292.1,36.11638437]
[1722362802272,3.94481002,3293.4,3292.2,0.0407199]
[1722362802273,3.03679,3293.0,3292.2,0.0407199]
[1722362802478,3.03693,3292.8,3292.2,0.0407199]
[1722362802690,3.03679,3293.0,3292.2,0.23030518]
[1722362802845,3.03685,3292.9,3292.3,35.0]
[1722362803045,3.03674,3293.0,3292.3,35.0]
[1722362803235,6.07319,3293.2,3292.4,0.10128615]
[1722362803580,6.07318,3293.2,3292.4,0.10128615]
[1722362803746,3.03668,3293.1,3292.4,0.10128615]
[1722362804082,3.03675,3293.0,3292.4,0.10128615]
[1722362804284,2.532341,3293.5,3292.4,0.10128615]
[1722362804451,3.03668,3293.1,3292.4,0.10128615]
[1722362804632,3.03647,3293.3,3292.4,0.37338102]
[1722362804835,3.03669,3293.1,3292.5,35.0]
[1722362805346,3.03652,3293.3,3292.6,0.04037387]
[1722362805546,3.081561,3293.5,3292.6,0.10110688]
[1722362805547,3.0364,3293.4,3292.6,0.10110688]
[1722362806029,3.0364,3293.4,3292.6,0.04037387]
[1722362806030,3.03649,3293.3,3292.6,0.04037387]
[1722362806982,3.03658,3293.2,3292.6,0.04037387]
[1722362807185,6.07361,3293.0,3292.6,0.04037387]
[1722362807327,3.03679,3293.0,3292.6,0.04037387]
[1722362807534,3.0368,3293.0,3292.1,1.11638437]
[1722362807838,3.03689,3292.9,3292.2,35.4561217]
[1722362808064,3.03662,3293.2,3292.2,35.4561217]
[1722362808065,3.0367,3293.1,3292.2,35.4561217]
[1722362808297,3.03662,3293.2,3292.3,3.10974851]
[1722362808574,3.0364,3293.4,3292.4,0.04054924]
[1722362808575,3.0369,3292.9,3292.4,0.04054924]
[1722362808776,3.03694,3292.8,3292.4,0.04054924]
[1722362808950,3.03694,3292.8,3292.5,35.0]
[1722362809151,3.03709,3292.7,3292.1,1.11638437]
[1722362809349,3.03709,3292.7,3292.6,0.04037623]
[1722362809577,3.03709,3292.7,3291.8,3.03781]
[1722362809748,3.03688,3292.9,3292.6,0.04037623]
[1722362809957,3.03688,3292.9,3292.2,35.0]
[1722362810138,3.03688,3292.9,3292.7,0.04028974]
[1722362810337,3.03688,3292.9,3292.2,35.0]
[1722362810338,3.03662,3293.2,3292.2,35.0]
[1722362810540,3.03679,3293.0,3292.8,0.04020325]
[1722362810732,3.03662,3293.2,3292.2,35.0]
[1722362811009,3.03665,3293.1,3292.3,3.08964863]
[1722362811374,3.03659,3293.2,3292.4,0.06073436]
[1722362811553,3.03656,3293.2,3292.3,9.16428863]
[1722362811757,0.045241,3293.5,3292.5,0.04046273]
[1722362811758,3.03643,3293.4,3292.5,0.04046273]
[1722362812040,3.03643,3293.4,3292.4,3.07775924]
[1722362812291,3.03651,3293.3,3292.6,0.04037623]
[1722362812472,3.03643,3293.4,3292.6,0.06073122]
[1722362812787,3.03648,3293.3,3292.7,0.04028974]
[1722362813157,3.03648,3293.3,3292.7,0.10102098]
[1722362813539,3.03637,3293.4,3292.7,0.10102098]
[1722362813770,3.03637,3293.4,3292.7,0.4761058]
[1722362814038,3.03667,3293.1,3292.7,0.41537456]
[1722362814242,3.081561,3293.5,3292.7,0.04028974]
[1722362814443,3.0365,3293.3,3292.7,0.10102099]
[1722362814688,1.05173997,3293.2,3292.7,0.06073125]
[1722362814977,4.08829997,3293.2,3292.8,0.04020325]
[1722362815200,1.05174942,3293.1,3292.8,0.04020325]
[1722362815483,0.045241,3293.5,3292.6,0.06073188]
[1722362815484,3.081571,3293.5,3292.6,0.06073188]
[1722362815652,4.08809414,3293.4,3292.9,0.04011677]
[1722362815995,1.05171414,3293.3,3293.0,0.04003029]
[1722362816194,1.05171414,3293.2,3293.0,0.04003029]
[1722362816347,3.03647,3293.3,3292.8,0.06073123]
[1722362816681,1.05171273,3293.2,3293.1,0.03994381]
[1722362816846,1.05171273,3293.2,3292.8,0.06072956]
[1722362817047,6.117931,3293.5,3293.1,0.03994381]
[1722362817315,4.08811263,3293.4,3292.8,0.06072956]
[1722362817459,1.05169263,3293.3,3292.8,0.06072956]
[1722362817678,1.05169263,3293.2,3292.9,0.03992461]
[1722362817878,1.05169263,3293.1,3292.9,0.10065403]
[1722362818187,4.08808263,3293.4,3292.9,0.03992461]
[1722362818488,1.05164087,3293.3,3292.9,0.03992461]
[1722362818654,1.05164087,3293.3,3290.5,1.26508182]
[1722362818856,2.4147,3292.0,3290.1,2.4364]
[1722362819087,3.03901,3290.6,3290.2,0.24364]
[1722362819393,3.03897,3290.6,3289.5,5.47632]
[1722362819680,2.4147,3291.0,3289.7,3.03977]
[1722362819681,3.03885,3290.8,3289.7,3.03977]
[1722362819891,2.4147,3291.8,3290.2,3.03927]
[1722362820182,3.03838,3291.3,3290.3,3.09994102]
[1722362820388,3.03869,3290.9,3290.4,0.3099941]
[1722362820584,3.03869,3290.9,3289.5,2.4364]
[1722362820585,3.03795,3291.7,3290.5,35.0]
[1722362820789,1.0524168,3291.6,3290.6,0.06077626]
[1722362820945,2.4147,3291.8,3290.7,3.04901288]
[1722362820946,1.0524168,3291.5,3290.7,3.04901288]
[1722362821150,3.0,3292.0,3291.0,3.03853]
[1722362821151,3.03767,3292.0,3291.0,3.03853]
[1722362821493,6.710864,3292.3,3291.1,3.09922864]
[1722362821494,1.05225842,3291.9,3291.1,3.09922864]
[1722362821648,1.05217271,3291.8,3291.2,0.30992286]
[1722362821852,1.05225216,3291.7,3290.7,3.04901288]
[1722362822047,3.03814,3291.5,3290.5,35.0]
[1722362822353,4.09053216,3291.4,3290.5,35.0]
[1722362822602,3.03875,3290.9,3290.5,35.0]
[1722362822803,3.03878,3290.8,3290.5,35.0]
[1722362823102,3.03817,3291.5,3290.3,3.03923]
[1722362823279,1.05247771,3291.4,3290.4,3.40381283]
[1722362823464,1.05247771,3291.3,3290.5,35.0]
[1722362823676,3.03858,3291.1,3290.5,35.0]
[1722362823883,3.03864,3291.0,3290.5,35.0]
[1722362824084,6.07674,3291.3,3290.5,38.04901288]
[1722362824263,1.05247908,3291.2,3290.6,0.06077087]
[1722362824462,3.03829,3291.4,3290.6,0.06077087]
[1722362824660,3.03845,3291.2,3290.6,0.06077087]
[1722362824966,3.358728,3291.8,3289.7,3.03973]
[1722362825202,0.944028,3291.6,3289.9,3.03953]
[1722362825532,3.03826,3291.4,3290.3,3.03918]
[1722362825730,3.0,3291.7,3290.4,0.303918]
[1722362826027,3.0,3291.7,3289.9,3.03955]
[1722362826028,3.03876,3290.9,3289.9,3.03955]
[1722362826513,3.03887,3290.7,3290.0,35.05094771]
[1722362826721,3.0391,3290.5,3290.0,35.05094771]
[1722362826873,3.03887,3290.7,3290.0,38.09996059]
[1722362827501,0.944028,3291.3,3290.0,38.09996059]
[1722362827709,0.944028,3291.3,3290.0,35.05094771]
[1722362827710,3.03911,3290.5,3290.0,35.05094771]
[1722362827917,6.07785,3290.7,3290.0,35.05094771]
[1722362828113,3.03942,3290.1,3290.0,35.05094771]
[1722362828417,6.07884,3290.1,3290.0,0.05094771]
[1722362828639,14.71912738,3290.1,3290.0,0.05094771]
[1722362828791,6.85957138,3290.1,3288.6,0.06080565]
[1722362829117,3.03988,3289.6,3288.7,0.28001632]
[1722362829297,3.03988,3289.6,3288.8,0.06079761]
[1722362829495,3.03977,3289.8,3288.8,3.10134761]
[1722362829726,3.03993,3289.6,3288.9,0.04796382]
[1722362829953,3.03954,3290.0,3289.0,0.06079762]
[1722362830154,6.07913,3290.0,3289.0,3.41614576]
[1722362830287,3.03954,3290.0,3289.0,3.41614576]
[1722362830488,0.94335732,3290.7,3289.1,0.04788359]
[1722362830812,2.4415,3290.9,3289.7,3.03978]
[1722362831036,3.03887,3290.7,3289.8,0.36475974]
[1722362831337,0.31779443,3290.8,3289.9,3.0396]
[1722362831635,0.31779443,3290.8,3289.8,0.36475974]
[1722362831636,6.07783,3290.7,3290.0,0.107728]
[1722362831839,0.31779443,3290.8,3290.0,0.107728]
[1722362831840,3.03899,3290.6,3290.0,0.04694753]
[1722362831986,3.03919,3290.4,3290.0,0.04694753]
[1722362832186,3.03924,3290.3,3289.4,3.04006]
[1722362832389,3.03924,3290.3,3290.1,0.04675577]
[1722362832611,3.03924,3290.3,3289.5,0.304006]
[1722362832842,3.03887,3290.7,3290.2,0.04664989]
[1722362833058,3.03866,3291.0,3289.9,3.03955]
[1722362833214,3.03866,3291.0,3289.6,2.49758567]
[1722362833215,3.03841,3291.2,3290.2,3.0393]
[1722362833391,2.3635,3291.5,3290.0,0.35071362]
[1722362833392,3.03866,3291.0,3290.0,0.35071362]
[1722362833590,3.03837,3291.3,3290.3,0.04644099]
[1722362833796,3.03826,3291.4,3290.5,3.03904]
[1722362834031,3.03826,3291.4,3290.6,0.36467321]
[1722362834296,5.30619,3292.1,3290.6,0.11265806]
[1722362834536,5.30622,3292.1,3290.7,3.0388]
[1722362834710,3.03766,3292.0,3290.8,0.11241347]
[1722362835065,5.30564,3292.7,3290.9,0.55]
[1722362835353,3.03782,3291.9,3291.0,0.05141259]
[1722362835500,3.03748,3292.2,3291.2,3.03839]
[1722362835696,3.84132563,3293.2,3291.3,0.05105547]
[1722362835697,3.03794,3291.7,3291.3,0.05105547]
[1722362835893,3.03794,3291.7,3290.8,0.25735135]
[1722362835894,3.03799,3291.7,3290.8,0.25735135]
[1722362836209,3.03785,3291.8,3290.9,0.05153164]
[1722362836369,3.03754,3292.2,3291.1,3.03849]
[1722362836620,3.03754,3292.2,3290.9,0.05153164]
[1722362836621,3.03751,3292.2,3291.3,3.03825]
[1722362836930,3.03751,3292.2,3291.4,0.05093645]
[1722362836931,3.03759,3292.1,3291.4,0.05093645]
[1722362837139,3.03751,3292.2,3291.2,3.342239]
[1722362837341,3.03732,3292.4,3291.3,3.15004867]
[1722362837520,6.9810431,3292.9,3291.4,0.34538977]
[1722362837521,3.03711,3292.6,3291.4,0.34538977]
[1722362837877,3.03702,3292.7,3291.8,3.03782]
[1722362838019,3.03702,3292.7,3291.9,0.06074193]
[1722362838215,3.03688,3292.9,3291.9,0.11108337]
[1722362838570,3.03688,3292.9,3291.9,3.14882337]
[1722362838869,3.03716,3292.6,3292.0,0.31488234]
[1722362839072,3.03722,3292.5,3291.9,0.05034144]
[1722362839237,3.03722,3292.5,3291.6,2.4595]
[1722362839238,3.03696,3292.8,3292.1,0.05726112]
[1722362839559,3.03696,3292.8,3292.2,0.05712516]
[1722362839773,3.03701,3292.8,3292.2,0.05712516]
[1722362839992,3.03704,3292.7,3291.9,0.06074044]
[1722362840199,3.03701,3292.8,3292.3,0.05698921]
[1722362840403,3.03701,3292.8,3291.9,0.37060048]
[1722362840404,3.03703,3292.7,3291.9,0.37060048]
[1722362840746,3.03683,3292.9,3292.0,3.09505709]
[1722362840950,3.03683,3292.9,3292.1,0.40730443]
[1722362841414,3.03711,3292.6,3292.1,0.34656576]
[1722362841547,3.03711,3292.6,3291.6,5.49751]
[1722362841889,3.03711,3292.6,3291.7,0.55]
[1722362842103,3.03711,3292.6,3291.7,0.60691155]
[1722362842603,3.03669,3293.1,3291.7,0.05691155]
[1722362842604,3.03752,3292.2,3291.7,0.05691155]
[1722362842946,3.03767,3292.0,3290.9,10.3886]
[1722362843193,3.03733,3292.4,3291.0,1.7292422]
[1722362843422,3.03733,3292.4,3291.4,3.03816]
[1722362843550,3.03756,3292.2,3291.1,3.03843]
[1722362843746,3.03759,3292.1,3291.2,0.05039269]
[1722362843948,0.94433255,3292.7,3291.0,1.61785814]
[1722362844146,3.03731,3292.4,3291.1,0.05051173]
[1722362844451,3.03764,3292.1,3291.1,3.08899173]
[1722362844672,3.03742,3292.3,3291.2,0.06075811]
[1722362844849,3.03742,3292.3,3291.3,0.31497498]
[1722362845048,3.03742,3292.3,3291.3,0.36524864]
[1722362845377,3.03742,3292.3,3291.3,3.40353864]
[1722362845897,3.0373,3292.4,3291.3,3.40349864]
[1722362846799,7.39,3292.6,3291.3,0.36524864]
[1722362846948,4.08942779,3292.5,3291.3,0.05027366]
[1722362847148,3.03772,3292.0,3291.0,7.65643814]
[1722362847389,3.03772,3292.0,3291.1,0.05051173]
[1722362847619,3.03772,3292.0,3291.1,3.08900173]
[1722362847813,3.03748,3292.2,3291.3,3.03829]
[1722362847984,3.03748,3292.2,3291.4,0.303829]
[1722362848180,3.03729,3292.4,3291.5,0.06075097]
[1722362848622,10.42715,3292.6,3291.6,0.04991661]
[1722362848927,13.46433,3292.6,3291.7,0.06074672]
[1722362849092,3.03715,3292.6,3291.7,0.06074672]
[1722362849295,3.03727,3292.5,3291.7,1.1675276]
[1722362849611,3.03706,3292.7,3291.7,1.10678088]
[1722362849949,3.03693,3292.8,3291.9,3.03769]
[1722362850102,3.0368,3293.0,3292.0,3.64722249]
[1722362850453,3.03694,3292.8,3292.0,0.54882369]
[1722362850576,3.03694,3292.8,3291.9,3.03775]
[1722362850786,3.03684,3292.9,3292.0,3.09834881]
[1722362851091,0.99000295,3293.5,3292.1,0.61360988]
[1722362851293,3.03713,3292.6,3291.9,7.35]
[1722362851833,3.03697,3292.8,3291.9,7.35]
[1722362852013,0.94476195,3293.4,3291.9,7.35]
[1722362852014,3.0372,3292.5,3291.9,7.35]
[1722362852329,3.03707,3292.7,3291.9,7.35]
[1722362852538,3.03732,3292.4,3291.9,8.73276093]
[1722362852737,3.03731,3292.4,3291.9,7.35]
[1722362853024,3.03707,3292.7,3291.9,7.35]
[1722362853180,3.03721,3292.5,3291.9,7.35]
[1722362853389,3.03711,3292.6,3291.9,7.35]
[1722362853740,3.03724,3292.5,3292.0,0.735]
[1722362853882,3.0373,3292.4,3291.9,7.35]
[1722362854083,6.07429,3292.6,3291.9,7.35]
[1722362854332,3.03711,3292.6,3291.9,7.35]
[1722362854642,3.03696,3292.8,3291.9,7.35]
[1722362854924,3.03696,3292.8,3292.0,1.038779]
[1722362855130,3.03724,3292.5,3291.9,7.35]
[1722362855429,3.03706,3292.7,3291.9,7.35]
[1722362855596,3.03711,3292.6,3291.9,7.35]
[1722362855788,3.03731,3292.4,3291.9,7.35]
[1722362855989,3.03766,3292.0,3290.9,7.35]
[1722362856189,3.03786,3291.8,3290.9,8.085]
[1722362856385,3.03827,3291.4,3291.0,0.05792989]
[1722362856695,0.94476195,3292.3,3291.0,0.05792989]
[1722362856696,3.03803,3291.6,3291.0,0.05792989]
[1722362857029,3.03817,3291.5,3291.0,0.05792989]
[1722362857196,3.03828,3291.4,3291.0,0.05792989]
[1722362857529,3.03828,3291.4,3291.0,0.79872288]
[1722362858107,7.39,3292.1,3291.0,0.05792989]
[1722362858282,6.07698,3291.1,3291.0,0.05792989]
[1722362858484,6.85906197,3292.0,3290.3,7.35]
[1722362858485,3.03873,3290.9,3290.3,7.35]
[1722362858735,3.03873,3290.9,3290.4,0.735]
[1722362858934,3.03873,3290.9,3290.4,0.05874638]
[1722362859285,3.03855,3291.1,3290.4,0.05874638]
[1722362859286,3.03837,3291.3,3290.4,3.03907]
[1722362859502,3.03818,3291.5,3290.0,7.35]
[1722362859503,3.03818,3291.5,3290.6,3.03895]
[1722362859898,3.038,3291.7,3290.7,0.0583381]
[1722362860086,3.94476195,3292.0,3290.8,0.30972481]
[1722362860282,3.03814,3291.5,3290.7,0.0583381]
[1722362860631,3.03814,3291.5,3290.8,0.05820202]
[1722362860835,3.03799,3291.7,3290.8,0.05820202]
[1722362860991,1.0522766,3291.6,3290.6,3.0389]
[1722362861393,1.0522766,3291.6,3290.5,7.35]
[1722362861394,3.03859,3291.0,3290.9,0.05806595]
[1722362861542,3.03878,3290.8,3290.7,0.0583381]
[1722362861726,3.03844,3291.2,3290.1,0.530165]
[1722362861926,3.03844,3291.2,3290.4,3.03914]
[1722362862392,3.03827,3291.4,3290.4,3.03914]
[1722362862393,3.03832,3291.3,3290.4,3.03914]
[1722362862565,3.03827,3291.4,3290.5,0.05861027]
[1722362863056,3.03875,3290.9,3290.2,0.7880165]
[1722362863254,3.03875,3290.9,3290.6,0.05847418]
[1722362863255,3.03886,3290.7,3290.6,0.05847418]
[1722362863479,3.03886,3290.7,3290.2,0.7880165]
[1722362863674,6.07752,3290.9,3290.6,0.05847418]
[1722362863829,3.03875,3290.9,3290.2,0.7880165]
[1722362864028,6.07754,3290.8,3290.7,0.0583381]
[1722362864229,3.03905,3290.5,3289.6,10.38982]
[1722362864586,3.03919,3290.4,3289.7,1.038982]
[1722362864724,3.30066195,3291.1,3289.7,1.038982]
[1722362864725,3.03934,3290.2,3289.7,1.038982]
[1722362864926,3.03949,3290.1,3289.6,7.35]
[1722362865134,3.03934,3290.2,3289.6,7.35]
[1722362865135,3.03953,3290.0,3289.6,7.35]
[1722362865567,3.03943,3290.1,3289.6,7.35]
[1722362865743,3.03929,3290.3,3289.6,8.06996339]
[1722362865969,3.03912,3290.5,3289.6,11.10976339]
[1722362866133,3.03926,3290.3,3289.7,1.11097634]
[1722362866369,0.94580741,3290.8,3289.6,7.35]
[1722362866561,0.94580741,3290.8,3289.0,7.35]
[1722362866562,3.03967,3289.9,3289.0,7.35]
[1722362866801,3.03967,3289.9,3289.0,10.39043]
[1722362867009,3.03943,3290.1,3289.1,1.288273]
[1722362867213,3.03943,3290.1,3289.2,3.04022]
[1722362867421,0.94580741,3290.6,3289.5,3.03989]
[1722362867422,3.03896,3290.6,3289.5,3.03989]
[1722362867704,7.39,3290.8,3289.7,3.03974]
[1722362867705,3.03883,3290.8,3289.7,3.03974]
[1722362867907,2.3559,3291.1,3289.8,0.31005233]
[1722362868106,4.0911581,3291.0,3289.9,3.1003287]
[1722362868319,3.03869,3290.9,3289.9,6.1398687]
[1722362868479,3.03866,3291.0,3289.9,3.1003187]
[1722362868815,3.0385,3291.1,3290.3,3.03922]
[1722362869021,3.03873,3290.9,3290.4,0.303922]
[1722362869229,3.0385,3291.1,3290.3,0.06077704]
[1722362870154,8.33580741,3291.5,3290.3,0.06077704]
[1722362870261,3.03839,3291.3,3290.4,3.09986701]
[1722362870466,6.03826,3291.4,3290.5,3.3489667]
[1722362870722,3.0,3291.4,3290.6,0.06077251]
[1722362870877,6.07669,3291.3,3290.5,0.42994311]
[1722362871088,3.03831,3291.3,3290.7,0.0589116]
[1722362871268,3.03854,3291.1,3290.6,0.05904768]
[1722362871472,3.03836,3291.3,3290.5,0.06077263]
[1722362871765,10.42817,3291.5,3290.6,3.09799768]
[1722362871962,10.42817,3291.5,3290.7,0.37664535]
[1722362871963,3.03817,3291.5,3290.7,0.37664535]
[1722362872183,3.21110741,3291.8,3290.8,0.05877552]
[1722362872414,3.03864,3291.0,3290.8,0.05877552]
[1722362872571,3.03831,3291.3,3290.0,7.35]
[1722362872770,6.24897741,3291.8,3290.4,3.03909]
[1722362872973,3.03835,3291.3,3290.4,3.03909]
[1722362873203,3.03835,3291.3,3290.1,1.58474824]
[1722362873204,3.03859,3291.0,3290.5,0.05918378]
[1722362873518,3.03828,3291.4,3290.2,3.0393]
[1722362873698,3.03806,3291.6,3290.6,0.05904768]
[1722362873699,3.03838,3291.3,3290.6,0.05904768]
[1722362873886,3.03838,3291.3,3290.6,0.30981077]
[1722362874083,3.03838,3291.3,3290.7,0.0589116]
[1722362874084,6.07676,3291.3,3290.7,0.0589116]
[1722362874323,3.03849,3291.1,3290.7,0.0589116]
[1722362874480,3.03858,3291.1,3290.7,0.0589116]
[1722362874667,0.94580741,3291.5,3290.1,1.52502]
[1722362875007,3.03896,3290.6,3290.1,0.97502]
[1722362875235,3.03896,3290.6,3289.4,2.3944]
[1722362875236,3.03921,3290.4,3290.2,0.05952225]
[1722362875424,3.03912,3290.5,3289.4,12.7844]
[1722362875570,3.03912,3290.5,3289.6,3.03987]
[1722362875928,3.03912,3290.5,3289.7,0.36418997]
[1722362876434,3.0391,3290.5,3289.7,0.06020297]